[Event "EICC 2021"]
[Site "Reykjavik"]
[Date "2021.09.05"]
[Round "11.39"]
[White "Stefansson, Hannes"]
[Black "Subelj, Jan"]
[Result "1/2-1/2"]
[ECO "D27"]
[WhiteElo "2519"]
[BlackElo "2412"]
[Annotator "ChessBase"]
[PlyCount "105"]
[EventDate "2021.08.26"]
[EventType "swiss"]
[EventCountry "ISL"]
[Tiebreak "Cut1 Buchholz"]
[SourceTitle "playchess.com"]
[Source "ChessBase"]
[SourceQuality "1"]
[TimeControl "40/5400+30:1800+30"]

1. d4 {[%emt 0:00:06]} Nf6 {[%emt 0:00:24]} 2. c4 {[%emt 0:00:13]} e6 {[%emt 0:
00:17]} 3. Nf3 {[%emt 0:00:11]} d5 {[%emt 0:00:42]} 4. Nc3 {[%emt 0:00:15]}
dxc4 {[%emt 0:01:17]} 5. e3 {[%emt 0:00:32]} a6 {[%emt 0:00:53]} 6. a4 {
[%emt 0:00:45]} b6 {[%emt 0:02:01]} 7. Bxc4 {[%emt 0:00:15]} Bb7 {[%emt 0:00:
08]} 8. O-O {[%emt 0:00:48]} c5 {[%emt 0:01:52]} 9. Qe2 {[%emt 0:02:42]} Nbd7 {
[%emt 0:01:16]} 10. Rd1 {[%emt 0:02:25]} Qc7 {[%emt 0:11:25]} 11. d5 {[%emt 0:
00:28]} exd5 {[%emt 0:00:14]} 12. Nxd5 {[%emt 0:00:05]} Nxd5 {[%emt 0:00:07]}
13. Bxd5 {[%emt 0:00:04]} Bxd5 {[%emt 0:00:06]} 14. Rxd5 {[%emt 0:00:06]} Be7 {
[%emt 0:00:06]} 15. b3 {[%emt 0:01:38]} Nf6 {[%emt 0:03:15]} 16. Rd1 {[%emt 0:
01:34]} O-O {[%emt 0:02:20]} 17. Bb2 {[%emt 0:00:10]} Qb7 {[%emt 0:01:42]} 18.
Ne5 {[%emt 0:00:43]} Rfd8 {[%emt 0:02:01]} 19. Ng4 {[%emt 0:03:17]} Nxg4 {
[%emt 0:00:55]} 20. Qxg4 {[%emt 0:00:05]} Bf8 {[%emt 0:02:07]} 21. h4 {[%emt 0:
15:02]} Rd5 {[%emt 0:03:33]} 22. e4 {[%emt 0:03:01]} h5 {[%emt 0:03:19]} 23.
Qf3 {[%emt 0:02:07]} Rxd1+ {[%emt 0:02:06]} 24. Rxd1 {[%emt 0:00:06]} Re8 {
[%emt 0:01:26]} 25. Rd5 {[%emt 0:01:25]} Qe7 {[%emt 0:03:51]} 26. Re5 {[%emt 0:
01:14]} Qd7 {[%emt 0:02:30]} 27. Rxh5 {[%emt 0:02:31]} Qd2 {[%emt 0:02:47]} 28.
Bc3 {[%emt 0:04:06]} Qc1+ {[%emt 0:01:02]} 29. Kh2 {[%emt 0:00:08]} Qc2 {
[%emt 0:01:31]} 30. e5 {[%emt 0:12:05]} Re6 {[%emt 0:05:21]} 31. Qf5 {[%emt 0:
07:09]} Qxf5 {[%emt 0:00:09]} 32. Rxf5 {[%emt 0:00:06]} b5 {[%emt 0:01:57]} 33.
Rf3 {[%emt 0:02:25]} Rc6 {[%emt 0:01:19]} 34. Rd3 {[%emt 0:07:29]} b4 {[%emt 0:
01:04]} 35. Bd2 {[%emt 0:00:07]} c4 {[%emt 0:00:15]} 36. bxc4 {[%emt 0:00:19]}
Rxc4 {[%emt 0:00:04]} 37. Bg5 {[%emt 0:00:32]} Bc5 {[%emt 0:01:18]} 38. f4 {
[%emt 0:02:16]} Bd4 {[%emt 0:00:06]} 39. h5 {[%emt 0:03:58]} Kh7 {[%emt 0:07:
31]} 40. h6 {[%emt 0:00:36]} gxh6 {[%emt 0:03:05]} 41. Bf6 {[%emt 0:30:05]} Kg6
{[%emt 0:30:04]} 42. g4 {[%emt 0:00:49]} Rc2+ {[%emt 0:00:12]} 43. Kh1 {
[%emt 0:04:07]} Rc1+ {[%emt 0:00:20]} 44. Kg2 {[%emt 0:00:07]} Rc2+ {[%emt 0:
00:02]} 45. Kf3 {[%emt 0:04:56]} Rc3 {[%emt 0:00:04]} 46. Ke4 {[%emt 0:00:07]}
Rxd3 {[%emt 0:00:05]} 47. Kxd3 {[%emt 0:00:04]} b3 {[%emt 0:00:07]} 48. Bh8 {
[%emt 0:00:45]} Kh7 {[%emt 0:04:46]} 49. Bf6 {[%emt 0:02:02]} Kg6 {[%emt 0:00:
04]} 50. Bh4 {[%emt 0:05:01]} h5 {[%emt 0:00:58]} 51. f5+ {[%emt 0:02:34]} Kg7
{[%emt 0:00:05]} 52. Bf6+ {[%emt 0:05:28]} Kh6 {[%emt 0:01:47]} 53. gxh5 {
[%emt 0:02:35]} 1/2-1/2

[Event "EICC 2021"]
[Site "Reykjavik"]
[Date "2021.09.05"]
[Round "11.40"]
[White "Ftacnik, Lubomir"]
[Black "Baltag, Iulian"]
[Result "1/2-1/2"]
[ECO "A87"]
[WhiteElo "2513"]
[BlackElo "2410"]
[Annotator "ChessBase"]
[PlyCount "50"]
[EventDate "2021.08.26"]
[EventType "swiss"]
[EventCountry "ISL"]
[Tiebreak "Cut1 Buchholz"]
[SourceTitle "playchess.com"]
[Source "ChessBase"]
[SourceQuality "1"]
[TimeControl "40/5400+30:1800+30"]

1. d4 {[%emt 0:00:04]} f5 {[%emt 0:00:06]} 2. Nf3 {[%emt 0:00:10]} Nf6 {
[%emt 0:00:07]} 3. g3 {[%emt 0:00:12]} g6 {[%emt 0:00:26]} 4. b3 {[%emt 0:00:
08]} Bg7 {[%emt 0:00:16]} 5. Bb2 {[%emt 0:00:07]} O-O {[%emt 0:00:15]} 6. Bg2 {
[%emt 0:00:08]} Ne4 {[%emt 0:00:36]} 7. O-O {[%emt 0:00:50]} d6 {[%emt 0:00:34]
} 8. Nbd2 {[%emt 0:04:07]} Nc6 {[%emt 0:00:13]} 9. e3 {[%emt 0:04:30]} e5 {
[%emt 0:00:50]} 10. dxe5 {[%emt 0:00:26]} Nxd2 {[%emt 0:00:30]} 11. Nxd2 {
[%emt 0:00:22]} dxe5 {[%emt 0:00:58]} 12. Nc4 {[%emt 0:03:06]} e4 {[%emt 0:01:
41]} 13. Bxg7 {[%emt 0:09:49]} Kxg7 {[%emt 0:00:02]} 14. f3 {[%emt 0:00:51]}
exf3 {[%emt 0:00:39]} 15. Bxf3 {[%emt 0:00:32]} Be6 {[%emt 0:03:12]} 16. Bxc6 {
[%emt 0:02:32]} bxc6 {[%emt 0:03:27]} 17. Qxd8 {[%emt 0:13:11]} Rfxd8 {[%emt 0:
00:09]} 18. Ne5 {[%emt 0:02:14]} Bd5 {[%emt 0:01:24]} 19. Nd3 {[%emt 0:11:32]}
Be4 {[%emt 0:02:17]} 20. Nc5 {[%emt 0:02:00]} Rd6 {[%emt 0:04:00]} 21. Nxe4 {
[%emt 0:07:22]} fxe4 {[%emt 0:00:07]} 22. Rf4 {[%emt 0:02:15]} Re8 {[%emt 0:00:
07]} 23. Raf1 {[%emt 0:02:09]} Re7 {[%emt 0:00:47]} 24. Rf8 {[%emt 0:09:36]}
Rd2 {[%emt 0:00:15]} 25. R1f2 {[%emt 0:01:19]} Rd1+ {[%emt 0:04:26]} 1/2-1/2